bitfinex/quotes_SOLUSD_20251007
["timestamp","ask_amount","ask_price","bid_price","bid_amount"]
[1759847246457,15.49358122,225.9,225.81,0.66]
[1759847246653,20.8,225.89,225.82,33.14]
[1759847246831,7.56954453,225.88,225.82,33.14]
[1759847247562,4.42771751,225.85,225.83,33.14]
[1759847247865,0.69,225.84,225.75,0.2]
[1759847248157,20.8,225.8,225.77,33.14]
[1759847248837,0.69,225.79,225.77,33.14]
[1759847249343,0.69,225.78,225.77,33.14]
[1759847249540,8.25954453,225.78,225.77,33.14]
[1759847249767,12.68863479,225.78,225.77,33.14]
[1759847249940,5.11909026,225.78,225.77,33.14]
[1759847250131,12.68863479,225.78,225.77,33.14]
[1759847250333,10.87647521,225.76,225.75,1e-08]
[1759847250556,18.44601974,225.76,225.75,1e-08]
[1759847250759,11.56647521,225.76,225.75,1e-08]
[1759847250939,7.56954453,225.76,225.75,1e-08]
[1759847251260,8.25954453,225.76,225.75,1e-08]
[1759847251437,39.21949483,225.78,225.75,33.14000001]
[1759847251637,38.52949483,225.78,225.75,33.14000001]
[1759847252087,7.56954453,225.77,225.75,33.14000001]
[1759847252846,38.52949483,225.78,225.75,33.14000001]
[1759847253052,7.56954453,225.76,225.75,33.14000001]
[1759847253269,0.69,225.76,225.75,33.14000001]
[1759847253498,32.79863479,225.78,225.75,33.14000001]
[1759847253655,4.42909026,225.78,225.75,33.82000001]
[1759847253980,18.6422492,225.79,225.75,33.14000001]
[1759847254278,7.56954453,225.76,225.75,1e-08]
[1759847254484,7.56954453,225.76,225.75,33.14000001]
[1759847254655,20.8,225.74,225.73,34.72]
[1759847254854,19.13601974,225.74,225.69,34.52]
[1759847255063,20.8,225.71,225.69,34.52]
[1759847255383,8.25954453,225.7,225.69,34.52]
[1759847255591,0.69,225.7,225.69,34.52]
[1759847255769,5.12066016,225.7,225.69,34.52]
[1759847255966,20.8,225.68,225.67,1e-08]
[1759847256164,11.56647521,225.69,225.67,19.12000001]
[1759847256358,20.8,225.69,225.67,19.12000001]
[1759847256886,7.56954453,225.7,225.67,19.12000001]
[1759847256887,4.43037705,225.72,225.68,0.68]
[1759847257068,4.43037705,225.72,225.69,0.68]
[1759847257262,20.8,225.74,225.7,0.68]
[1759847257579,4.42948263,225.76,225.71,0.68]
[1759847257886,4.43007132,225.73,225.72,33.12]
[1759847258076,7.56954453,225.74,225.72,33.12]
[1759847258276,11.99944131,225.74,225.72,33.12]
[1759847258588,4.42989678,225.74,225.72,33.8]
[1759847258785,4.42989678,225.74,225.73,0.68]
[1759847259080,4.42869796,225.8,225.73,0.68]
[1759847259486,15.50058914,225.8,225.73,0.68]
[1759847259664,15.50058914,225.8,225.72,33.8]
[1759847259863,7.56954453,225.74,225.71,34.52]
[1759847260086,15.50250254,225.77,225.72,33.12]
[1759847260289,7.56954453,225.73,225.72,33.12]
[1759847260470,8.28954453,225.73,225.72,33.12]
[1759847260665,20.8,225.74,225.72,33.12]
[1759847261384,15.50250254,225.77,225.72,33.8]
[1759847261681,4.42928644,225.77,225.73,0.68]
[1759847261882,15.50250254,225.77,225.73,0.68]
[1759847262186,4.42928644,225.77,225.72,33.12]
[1759847262390,15.50250254,225.77,225.73,0.68]
[1759847262591,15.50250254,225.77,225.74,0.68]
[1759847263000,15.50250254,225.77,225.75,0.68]
[1759847263201,4.42928644,225.77,225.75,0.68]
[1759847263370,23.07204707,225.77,225.76,33.12]
[1759847264192,23.79204707,225.77,225.76,33.12]
[1759847264387,23.79204707,225.77,225.71,34.52]
[1759847264388,10.87647521,225.76,225.71,34.52]
[1759847264594,0.72,225.75,225.71,34.52]
[1759847264775,7.56954453,225.72,225.71,34.52]
[1759847265277,28.36954453,225.73,225.71,34.52]
[1759847265484,20.8,225.74,225.72,33.1]
[1759847265874,20.8,225.74,225.72,33.78]
[1759847266074,4.43007132,225.73,225.72,33.78]
[1759847266277,4.43007132,225.73,225.72,33.1]
[1759847266488,4.43007132,225.73,225.72,33.78]
[1759847266990,25.22922314,225.78,225.72,33.78]
[1759847267201,4.42922314,225.78,225.73,0.68]
[1759847267373,15.5019488,225.78,225.74,0.68]
[1759847267690,16.2219488,225.78,225.75,33.1]
[1759847267899,7.56954453,225.77,225.76,33.1]
[1759847268071,23.07204707,225.77,225.71,35.2]
[1759847268272,15.50250254,225.77,225.72,33.1]
[1759847268472,4.42928644,225.77,225.73,0.68]
[1759847268796,15.50250254,225.77,225.72,33.1]
[1759847268980,15.50250254,225.77,225.72,33.78]
[1759847269178,23.07204707,225.77,225.72,33.1]
[1759847269379,7.56954453,225.76,225.72,33.1]
[1759847269578,15.50250254,225.77,225.72,0.68]
[1759847269876,15.50250254,225.77,225.73,33.1]
[1759847270198,23.07204707,225.77,225.73,33.1]
[1759847270578,23.07204707,225.77,225.71,34.52]
[1759847270579,7.56954453,225.74,225.71,34.52]
[1759847270792,7.56954453,225.72,225.71,34.52]
[1759847271093,7.56954453,225.72,225.71,67.62]
[1759847271468,16.22250254,225.77,225.71,67.62]
[1759847271681,7.56954453,225.72,225.71,67.62]
[1759847271894,8.28954453,225.72,225.71,67.62]
[1759847272195,11.99981211,225.72,225.71,67.62]
[1759847272974,4.43026758,225.72,225.71,67.62]
[1759847274074,15.50430468,225.75,225.71,68.3]
[1759847274377,4.42967884,225.75,225.72,0.68]
[1759847274576,11.0730114,225.78,225.71,67.62]
[1759847274577,11.0730114,225.78,225.73,0.68]
[1759847274777,11.0730114,225.78,225.74,33.76]
[1759847275197,11.0730114,225.78,225.75,0.68]
[1759847275389,4.4288941,225.79,225.76,0.68]
[1759847275577,4.4288941,225.79,225.77,33.08]
[1759847275779,4.4288941,225.79,225.78,0.68]
[1759847276091,15.50181592,225.78,225.73,0.68]
[1759847276290,15.50181592,225.78,225.74,33.76]
[1759847276485,20.62563396,225.78,225.74,33.76]
[1759847276695,15.50181592,225.78,225.74,33.76]
[1759847276992,15.50181592,225.78,225.75,0.67]
[1759847277193,4.42909026,225.78,225.76,0.67]
[1759847277398,26.37443256,225.84,225.77,33.75]
[1759847277786,20.62177539,225.84,225.77,33.75]
[1759847277996,20.6242609,225.8,225.74,0.67]
[1759847278186,5.12381804,225.79,225.75,33.08]
[1759847278500,5.12381804,225.79,225.71,34.52]
[1759847278685,15.50044286,225.8,225.72,33.08]
[1759847278686,5.12381804,225.76,225.72,33.08]
[1759847278871,11.58647521,225.78,225.72,33.08]
[1759847279072,5.12381804,225.76,225.72,33.08]
[1759847279396,15.50044286,225.8,225.72,33.08]
[1759847279613,10.87647521,225.79,225.73,0.67]
[1759847279800,20.6242609,225.8,225.73,0.67]
[1759847279980,15.50181592,225.78,225.73,0.67]
[1759847280297,5.12381804,225.76,225.71,35.19]
[1759847280504,0.71,225.75,225.71,34.52]
[1759847280674,5.12381804,225.72,225.71,34.52]
[1759847280878,10.87647521,225.71,225.67,1e-08]
[1759847281075,11.58647521,225.71,225.68,67.58]
[1759847281280,10.87647521,225.69,225.67,1e-08]
[1759847281698,21.51,225.68,225.67,1e-08]
[1759847282304,31.06487085,225.68,225.67,1e-08]
[1759847282505,10.87647521,225.67,225.6,0.2]
[1759847282812,5.12381804,225.63,225.6,0.2]
[1759847283107,5.12381804,225.61,225.6,0.2]
[1759847283292,5.12381804,225.62,225.6,0.2]
[1759847283601,5.12381804,225.63,225.61,15.36]
[1759847284005,70.05042415,225.68,225.61,16.03]
[1759847284203,5.12381804,225.69,225.62,0.67]
[1759847284380,5.12381804,225.66,225.6,0.2]
[1759847284580,5.12381804,225.67,225.61,33.27]
[1759847284778,32.38647521,225.71,225.61,33.27]
[1759847284997,5.12381804,225.69,225.62,0.67]
[1759847285206,5.12381804,225.7,225.62,0.67]
[1759847285380,5.12381804,225.69,225.62,0.67]
[1759847285584,32.38647521,225.71,225.62,0.67]
[1759847285784,5.12381804,225.69,225.62,0.67]
[1759847286002,32.38647521,225.71,225.62,0.67]
[1759847286003,20.8,225.71,225.63,33.06]
[1759847286301,15.50593655,225.72,225.64,5.10181993]
[1759847286608,10.87647521,225.76,225.65,33.73]
[1759847286908,4.42850183,225.81,225.65,33.73]
[1759847286909,10.87647521,225.79,225.66,0.67]
[1759847287112,5.12381804,225.77,225.66,0.67]
[1759847287295,32.38647521,225.79,225.66,0.67]
[1759847287501,5.12381804,225.77,225.66,0.67]
[1759847287813,5.12381804,225.74,225.67,34.52]
[1759847287998,0.71,225.76,225.68,33.06]
[1759847288311,15.50387596,225.75,225.68,33.73]
[1759847288493,4.42967884,225.75,225.69,0.67]
[1759847288806,15.50387596,225.75,225.69,0.67]
[1759847289011,5.12381804,225.71,225.7,33.06]
[1759847289205,0.71,225.71,225.7,33.06]
[1759847289398,5.83381804,225.71,225.7,33.06]
[1759847289801,5.12381804,225.72,225.7,33.06]
[1759847289999,5.12381804,225.73,225.7,33.06]
[1759847290318,4.43026758,225.72,225.7,33.06]
[1759847291510,0.71,225.71,225.67,34.52]
[1759847291823,15.50593655,225.72,225.68,33.71]
[1759847291995,15.50593655,225.72,225.69,0.67]
[1759847292200,4.43026758,225.72,225.7,0.67]
[1759847292397,4.42928644,225.77,225.71,0.67]
[1759847292915,4.42928644,225.77,225.71,21.47]
[1759847293114,4.42928644,225.77,225.72,0.67]
[1759847293420,4.42928644,225.77,225.73,0.67]
[1759847293626,4.42928644,225.77,225.74,33.71]
[1759847293807,4.42928644,225.77,225.75,0.67]
[1759847294006,4.42928644,225.77,225.74,33.04]
[1759847294317,11.07204248,225.8,225.74,33.71]
[1759847294634,11.07204248,225.8,225.75,0.67]
[1759847294826,11.07204248,225.8,225.76,0.67]
[1759847295003,11.07204248,225.8,225.77,0.67]
[1759847295209,11.07204248,225.8,225.74,33.71]
[1759847295625,11.07204248,225.8,225.75,0.67]
[1759847295822,4.42850183,225.81,225.75,0.67]
[1759847296120,11.07055306,225.83,225.75,0.67]
[1759847296301,4.42791356,225.84,225.75,0.67]
[1759847296495,20.62151551,225.84,225.75,20.8]
[1759847296697,5.83381804,225.83,225.76,33.04]
[1759847296895,5.83381804,225.83,225.73,0.67]
[1759847296896,10.87647521,225.79,225.77,33.02]
[1759847297197,5.83381804,225.79,225.78,33.02]
[1759847297397,20.8,225.81,225.78,67.54]
[1759847297596,16.20769747,225.84,225.78,67.54]
[1759847297798,15.49769747,225.84,225.78,67.54]
[1759847298297,11.06978391,225.84,225.78,67.54]
[1759847298706,11.77978391,225.84,225.78,67.54]
[1759847298913,5.12381804,225.8,225.78,34.52]
[1759847299133,5.83381804,225.79,225.78,34.52]
[1759847299306,5.83381804,225.79,225.78,67.54]
[1759847299622,31.86978391,225.84,225.78,67.54]
[1759847299825,5.12381804,225.82,225.78,67.54]
[1759847300031,5.12381804,225.82,225.78,34.52]
[1759847300251,20.8,225.84,225.79,33.02]
[1759847300524,15.49632515,225.86,225.8,33.69]
[1759847300704,15.49632515,225.86,225.8,33.02]
[1759847300909,5.12381804,225.84,225.8,33.02]
[1759847301122,5.12381804,225.84,225.78,34.52]
[1759847301343,5.12381804,225.79,225.78,34.52]
[1759847301505,0.71,225.79,225.78,67.54]
[1759847301698,5.12381804,225.79,225.78,34.52]
[1759847302021,5.12381804,225.8,225.78,67.54]
[1759847302225,5.12381804,225.79,225.78,67.54]
[1759847302414,9.55271214,225.79,225.78,67.54]
[1759847302626,4.4288941,225.79,225.78,67.54]
[1759847302812,9.55271214,225.79,225.78,67.54]
[1759847303309,4.4288941,225.79,225.78,67.54]
[1759847303718,9.55271214,225.79,225.78,67.54]
[1759847304034,4.42830573,225.82,225.78,68.21]
[1759847304228,4.42830573,225.82,225.79,0.67]
[1759847304412,15.49907005,225.82,225.78,67.54]
[1759847304621,16.19323427,225.85,225.79,0.67]
[1759847304933,4.42804037,225.84,225.79,0.67]
[1759847305118,15.49782428,225.84,225.79,0.67]
[1759847305317,15.49782428,225.84,225.8,0.67]
[1759847306110,15.49782428,225.84,225.78,67.54]
[1759847306522,16.19360195,225.84,225.78,67.54]
[1759847306831,11.06978391,225.84,225.78,67.54]
[1759847307031,4.42752147,225.86,225.78,67.54]
[1759847307234,26.37280036,225.86,225.78,67.54]
[1759847307430,5.12381804,225.85,225.79,0.69]
[1759847307928,20.62014319,225.86,225.79,0.69]
[1759847308233,15.49632515,225.86,225.79,0.69]
[1759847308435,20.62014319,225.86,225.79,0.69]
[1759847308823,15.49632515,225.86,225.79,0.69]
[1759847309018,5.82381804,225.85,225.8,33.0]
[1759847309432,30.35133951,225.86,225.81,0.69]
[1759847309742,5.82381804,225.85,225.8,33.0]
[1759847310038,5.12381804,225.85,225.8,33.0]
[1759847310218,5.82381804,225.84,225.8,33.0]
[1759847310417,5.12381804,225.85,225.8,33.69]
[1759847310737,41.42014319,225.86,225.8,33.0]
[1759847311315,5.12381804,225.84,225.8,33.0]
[1759847311530,5.12381804,225.81,225.78,34.52]
[1759847311732,10.87647521,225.85,225.78,34.52]
[1759847311733,5.82381804,225.8,225.78,34.52]
[1759847311921,5.12381804,225.79,225.78,34.52]
[1759847312116,5.82381804,225.8,225.79,32.98]
[1759847312317,0.7,225.8,225.79,32.98]
[1759847312519,9.552516,225.8,225.79,32.98]
[1759847313121,31.67647521,225.79,225.74,34.52]
[1759847313322,16.00029325,225.76,225.75,32.98]
[1759847313530,5.12381804,225.76,225.75,32.98]
[1759847314242,5.82381804,225.76,225.75,32.98]
[1759847314619,5.12948263,225.76,225.75,32.98]
[1759847314940,4.42948263,225.76,225.75,32.98]
[1759847315444,4.42948263,225.76,225.75,33.67]
[1759847315642,4.42948263,225.76,225.75,32.98]
[1759847316141,4.42948263,225.76,225.74,34.52]
[1759847316444,0.7,225.75,225.74,34.52]
[1759847316645,5.12381804,225.75,225.74,67.5]
[1759847316844,9.55349688,225.75,225.74,67.5]
[1759847317041,32.20416921,225.75,225.68,0.69]
[1759847317241,5.12381804,225.71,225.69,34.52]
[1759847317454,5.12381804,225.7,225.69,34.52]
[1759847318447,10.87647521,225.72,225.69,67.5]
[1759847318746,9.5544782,225.7,225.69,34.52]
[1759847318940,10.2244782,225.7,225.69,67.5]
[1759847319138,21.30112862,225.7,225.61,0.69]
[1759847319357,5.12381804,225.67,225.61,0.69]
[1759847319656,16.17731058,225.7,225.61,0.69]
[1759847319657,15.50731058,225.7,225.61,0.69]
[1759847320328,5.12381804,225.69,225.61,0.69]
[1759847320638,5.12381804,225.66,225.62,32.98]
[1759847320944,15.51074672,225.65,225.62,32.98]
[1759847321353,15.51074672,225.65,225.62,33.67]
[1759847321959,4.43105281,225.68,225.63,0.69]
[1759847322245,4.43105281,225.68,225.64,0.69]
[1759847322450,4.43105281,225.68,225.65,0.69]
[1759847322645,15.50868485,225.68,225.66,32.98]
[1759847322947,15.50731058,225.7,225.66,32.98]
[1759847323430,16.17731058,225.7,225.66,32.98]
[1759847323635,15.50731058,225.7,225.66,32.98]
[1759847323837,16.17731058,225.7,225.66,32.98]
[1759847324548,5.12381804,225.69,225.66,32.98]
[1759847324749,5.12381804,225.69,225.67,32.96]
[1759847324953,11.07665042,225.7,225.67,32.96]
[1759847325632,5.12381804,225.68,225.67,32.96]
[1759847325835,0.67,225.69,225.67,32.96]
[1759847325836,5.12381804,225.69,225.67,32.96]
[1759847326039,5.79381804,225.68,225.67,32.96]
[1759847326235,10.87647521,225.67,225.6,0.2]
[1759847326444,5.12381804,225.65,225.61,32.96]
[1759847326629,0.67,225.65,225.61,32.96]
[1759847326834,5.12381804,225.64,225.62,32.96]
[1759847327052,5.12381804,225.65,225.62,32.96]
[1759847327356,41.43387741,225.66,225.62,32.96]
[1759847327550,0.67,225.65,225.62,32.96]
[1759847327751,5.12381804,225.65,225.63,34.54]
[1759847327956,41.43387741,225.66,225.63,34.54]
[1759847328255,5.79381804,225.65,225.63,34.54]
[1759847328553,5.79381804,225.64,225.63,34.54]
[1759847328749,5.79381804,225.64,225.63,67.5]
[1759847328957,36.31005937,225.66,225.63,67.5]
[1759847329252,20.63387741,225.66,225.63,67.5]
[1759847329436,21.30387741,225.66,225.63,67.5]
[1759847329638,15.51005937,225.66,225.63,67.5]
[1759847329837,20.63387741,225.66,225.63,67.5]
[1759847330038,15.51005937,225.66,225.63,67.5]
[1759847330240,4.43110103,225.68,225.64,0.69]
[1759847330445,4.43110103,225.68,225.63,67.5]
[1759847330650,4.43110103,225.68,225.65,0.69]
[1759847330855,4.43110103,225.68,225.66,0.69]
[1759847331054,15.50662353,225.71,225.66,0.69]
[1759847331452,36.80029325,225.68,225.67,32.96]
[1759847331760,25.92381804,225.68,225.67,32.96]
[1759847331959,20.8,225.68,225.67,32.96]
[1759847332466,26.59381804,225.68,225.67,32.96]
[1759847332761,31.02487085,225.68,225.67,32.96]
[1759847333061,41.90134606,225.68,225.67,32.96]
[1759847333466,10.87647521,225.67,225.63,34.54]
[1759847333640,5.12381804,225.65,225.63,34.54]
[1759847334039,5.12381804,225.64,225.63,34.54]
[1759847334562,5.79381804,225.64,225.63,34.54]
[1759847334859,5.79381804,225.64,225.6,0.2]
[1759847334860,15.5121216,225.63,225.6,0.2]
[1759847335234,15.5121216,225.63,225.6,0.89]
[1759847335848,15.5121216,225.63,225.61,32.0]
[1759847337135,11.08008686,225.63,225.6,0.2]
[1759847337342,11.08008686,225.63,225.61,21.92]
[1759847337565,18.66459385,225.63,225.61,21.92]
[1759847337862,18.66459385,225.63,225.62,34.54]
[1759847338066,19.35459385,225.63,225.62,34.54]
[1759847338263,30.23106906,225.63,225.62,34.54]
[1759847338559,10.87647521,225.62,225.6,0.2]
[1759847338768,10.87647521,225.6,225.57,0.2]
[1759847338976,10.87647521,225.6,225.58,49.78]
[1759847339262,22.8938028,225.59,225.58,49.78]
[1759847340366,23.5838028,225.59,225.57,0.2]
[1759847340557,23.5838028,225.59,225.46,0.1]
[1759847340558,7.58450699,225.54,225.46,0.1]
[1759847340761,7.58450699,225.55,225.5,0.7]
[1759847340957,7.58450699,225.55,225.51,0.7]
[1759847341159,23.10281859,225.54,225.49,0.7]
[1759847341352,7.58450699,225.52,225.47,34.54]
[1759847341754,7.58450699,225.52,225.47,35.24]
[1759847342068,10.87647521,225.5,225.47,34.54]
[1759847342270,10.87647521,225.5,225.48,32.94]
[1759847342471,20.8,225.51,225.48,32.94]
[1759847342672,20.8,225.51,225.49,0.7]
[1759847342973,20.8,225.51,225.48,32.94]
[1759847343169,4.4345898,225.5,225.48,33.64]
[1759847343373,11.56647521,225.55,225.48,32.94]
[1759847343374,7.58450699,225.53,225.48,32.94]
[1759847343551,4.43380331,225.54,225.49,0.7]
[1759847343750,7.58450699,225.51,225.47,34.54]
[1759847343951,32.36647521,225.51,225.5,32.94]
[1759847344150,39.9509822,225.51,225.5,32.94]
[1759847344352,31.67647521,225.51,225.5,32.94]
[1759847344775,20.8,225.51,225.5,32.94]
[1759847344991,15.5183116,225.54,225.5,32.94]
[1759847345294,7.58450699,225.53,225.5,32.94]
[1759847345460,15.5183116,225.54,225.5,32.94]
[1759847345986,15.5183116,225.54,225.51,0.7]
[1759847346286,4.43380331,225.54,225.52,0.7]
[1759847346583,25.23337845,225.57,225.53,0.7]
[1759847346802,20.8,225.56,225.54,33.64]
[1759847347083,43.90091953,225.57,225.54,32.94]
[1759847347475,4.43337845,225.57,225.55,0.7]
[1759847347982,4.43337845,225.57,225.54,32.94]
[1759847348165,4.43337845,225.57,225.55,0.7]
[1759847348364,7.58450699,225.6,225.56,0.7]
[1759847348562,4.43278425,225.6,225.54,32.94]
[1759847348862,7.58450699,225.59,225.54,33.64]
[1759847349055,23.09885152,225.6,225.55,0.7]
[1759847349453,15.51434453,225.6,225.55,0.7]
[1759847349654,7.58450699,225.59,225.56,33.64]
[1759847349876,4.43278425,225.6,225.57,0.7]
[1759847350263,4.43278425,225.6,225.58,0.7]
[1759847350464,10.87647521,225.68,225.59,0.7]
[1759847350683,28.38450699,225.65,225.59,0.7]
[1759847350883,20.8,225.65,225.59,0.7]
[1759847351082,28.38450699,225.65,225.59,0.7]
[1759847351375,7.58450699,225.65,225.59,0.7]
[1759847351575,17.96159937,225.67,225.59,0.7]
[1759847351777,23.09390094,225.67,225.59,0.7]
[1759847352075,7.58450699,225.62,225.6,32.94]
[1759847352291,10.87647521,225.63,225.61,32.94]
[1759847352580,8.27450699,225.62,225.61,32.94]
[1759847352783,0.69,225.62,225.61,32.94]
[1759847352962,8.27450699,225.62,225.61,32.94]
[1759847353158,0.69,225.62,225.61,32.94]
[1759847353480,5.12223118,225.62,225.61,32.94]
[1759847353677,12.70673817,225.62,225.61,32.94]
[1759847353857,23.78731613,225.62,225.61,32.92]
[1759847354052,10.87647521,225.61,225.51,0.7]
[1759847354276,7.58450699,225.58,225.51,0.7]
[1759847354576,20.8,225.64,225.51,0.7]
[1759847354766,7.58450699,225.62,225.51,0.7]
[1759847355165,7.58450699,225.61,225.51,0.7]
[1759847355381,11.56647521,225.63,225.52,32.92]
[1759847355382,15.51418439,225.6,225.52,32.92]
[1759847355582,4.43262411,225.6,225.53,0.7]
[1759847356287,4.43242667,225.62,225.55,20.8]
[1759847356490,4.43242667,225.62,225.56,0.7]
[1759847357200,4.43144073,225.67,225.56,0.7]
[1759847357393,26.38378579,225.7,225.57,4.43321363]
[1759847357679,33.96829278,225.7,225.58,33.62]
[1759847357867,15.50731058,225.7,225.59,0.7]
[1759847358076,15.50731058,225.7,225.61,20.8]
[1759847358279,15.50731058,225.7,225.62,0.7]
[1759847358665,23.09181757,225.7,225.62,0.7]
[1759847358868,15.50731058,225.7,225.62,0.7]
[1759847359463,23.09181757,225.7,225.63,32.92]
[1759847359693,15.50731058,225.7,225.63,32.92]
[1759847359874,23.09181757,225.7,225.63,32.92]
[1759847360075,15.50731058,225.7,225.62,0.7]
[1759847360285,23.09181757,225.7,225.64,32.92]
[1759847360488,15.50731058,225.7,225.64,32.92]
[1759847360691,4.43066016,225.7,225.65,35.24]
[1759847360895,4.43066016,225.7,225.66,0.7]
[1759847361184,4.43066016,225.7,225.67,32.9]
[1759847361365,15.50731058,225.7,225.67,32.9]
[1759847361560,0.69,225.69,225.68,32.9]
[1759847361773,8.27450699,225.69,225.65,34.54]
[1759847361977,18.4609822,225.66,225.65,34.54]
[1759847362215,19.1509822,225.66,225.49,13.00374047]
[1759847362379,0.69,225.65,225.55,0.7]
[1759847362586,7.58450699,225.63,225.55,0.7]
[1759847362791,21.49,225.65,225.55,0.7]
[1759847363092,7.58450699,225.61,225.53,21.5]
[1759847363396,15.51418439,225.6,225.54,32.9]
[1759847364179,15.51418439,225.6,225.54,33.6]
[1759847364380,15.51418439,225.6,225.46,10.97647521]
[1759847364381,23.78869138,225.6,225.51,0.7]
[1759847364584,7.58450699,225.57,225.55,32.9]
[1759847364789,8.27450699,225.57,225.56,20.78]
[1759847365102,0.69,225.57,225.56,32.9]
[1759847365392,8.27450699,225.57,225.56,32.9]
[1759847365597,5.12321363,225.57,225.56,32.9]
[1759847365804,4.43321363,225.57,225.56,32.9]
[1759847366680,4.43295808,225.59,225.56,33.59]
[1759847366873,4.43295808,225.59,225.57,0.69]
[1759847367573,11.08156028,225.6,225.56,32.9]
[1759847367795,11.08156028,225.6,225.57,34.54]
[1759847369503,4.43242764,225.61,225.57,34.54]
[1759847369678,0.7,225.64,225.57,35.23]
[1759847369878,16.2121216,225.63,225.57,34.54]
[1759847370199,7.58450699,225.6,225.58,32.9]
[1759847370370,7.58450699,225.6,225.57,34.54]
[1759847370371,20.8,225.6,225.57,34.54]
[1759847370578,20.8,225.58,225.57,34.54]
[1759847370786,29.08450699,225.58,225.57,34.54]
[1759847370993,21.5,225.58,225.57,67.42]
[1759847371196,29.08450699,225.58,225.57,67.42]
[1759847371583,33.5175241,225.58,225.57,67.42]
[1759847371778,37.01555988,225.58,225.47,0.69]
[1759847371984,55.47654208,225.58,225.47,0.69]
[1759847372172,7.58450699,225.56,225.48,32.88]
[1759847373094,7.58450699,225.54,225.48,32.88]
[1759847373591,7.58450699,225.53,225.47,0.69]
[1759847373809,31.67647521,225.51,225.46,0.1]
[1759847373985,31.67647521,225.51,225.47,32.88]
[1759847374188,7.58450699,225.48,225.47,32.88]
[1759847374383,7.58450699,225.48,225.46,0.1]
[1759847374593,7.58450699,225.48,225.47,32.88]
[1759847374793,8.28450699,225.48,225.47,32.88]
[1759847375095,12.01949013,225.48,225.47,32.88]
[1759847375597,4.43498314,225.48,225.47,32.88]
[1759847375896,28.38450699,225.51,225.47,32.88]
[1759847376197,7.58450699,225.5,225.47,32.88]
[1759847376600,28.38450699,225.51,225.47,32.88]
[1759847377217,23.10557129,225.5,225.47,32.88]
[1759847377386,15.5210643,225.5,225.47,32.88]
[1759847377789,15.5210643,225.5,225.48,34.56]
[1759847377986,4.4345898,225.5,225.48,34.56]
[1759847378500,21.47,225.49,225.48,34.56]
[1759847378698,29.05450699,225.49,225.48,67.44]
[1759847379286,33.48929345,225.49,225.48,67.44]
[1759847379706,25.90478646,225.49,225.48,67.44]
[1759847379999,33.48929345,225.49,225.48,67.44]
[1759847380182,10.87647521,225.48,225.46,34.66]
[1759847380382,11.54647521,225.48,225.47,32.88]
[1759847380912,19.1309822,225.48,225.47,32.88]
[1759847381286,4.43517984,225.47,225.46,34.66]
[1759847381486,34.65411165,225.47,225.46,34.56]
[1759847381684,34.65411165,225.47,225.44,0.1]
[1759847381884,0.67,225.46,225.44,0.1]
[1759847382085,7.58450699,225.45,225.44,0.1]
[1759847382284,20.8,225.44,225.43,1e-08]
[1759847382587,21.47,225.44,225.43,11.88000001]
[1759847382905,20.8,225.44,225.43,11.88000001]
[1759847383305,25.23577004,225.44,225.43,11.88000001]
[1759847383708,33.49027703,225.44,225.43,11.88000001]
[1759847384209,44.57970215,225.44,225.37,0.1]
[1759847384399,7.58450699,225.38,225.37,0.1]
[1759847384601,7.58450699,225.39,225.37,0.1]